{"text_format":"3","workbook":"xlsx","n_sheets":4,"sheets":["Controlador de projetos","Gráfico do projeto","Sobre","Dados do gráf. dinâmico oculta"],"not_rendered":{"charts":1,"defined_names":8},"read":"whole","date_system":"1900"}

{"sheet":"Controlador de projetos","index":0,"n_rows":22,"n_cols":7,"rows_kept":22}
["Crie um Controlador de projetos nesta planilha.\nO título desta planilha está na célula B1. \nAs informações sobre como usar esta planilha, incluindo instruções para leitores de tela, estão na planilha Sobre.","Controlador de projetos"]
["A Data de início pode ser inserida manualmente na célula D2 ou você pode usar a fórmula de exemplo do modelo para encontrar a menor data na coluna de marcos na tabela correspondente abaixo.",null,"Data de início:",{"$f":"IFERROR(IF(MIN(Marcos[Data de Início])=0,TODAY(),MIN(Marcos[Data de Início])),TODAY())","v":"2022-01-18"}]
["A Data de término pode ser inserida manualmente na célula D3 ou você pode usar a fórmula de exemplo do modelo para encontrar a menor data na coluna de marcos na tabela correspondente abaixo.",null,"Data de término:",{"$f":"IFERROR(IF(MAX(Marcos[Data de Término])=0,TODAY(),MAX(Marcos[Data de Término])),TODAY())","v":"2022-08-16"}]
["Há informações sobre as colunas da tabela de marcos nas células B4 a G4.","Insira um conjunto de números sequenciais na coluna abaixo.","Insira a data de início do marco ou atividade na coluna abaixo.","Insira a data de término do marco ou atividade na coluna abaixo.","Insira a descrição do marco e/ou atividade na coluna abaixo. Essa descrição será exibido no Gráfico do projeto.","Calculado automaticamente. Os dados abaixo desta coluna são usados para criar o gráfico de marcos e atividades.","Calculado automaticamente. Duração de cada tarefa "]
["Os cabeçalhos da tabela estão nas células B5 a G5. \nHá duas colunas ocultas: As colunas Iniciar no dia e Duração da Tarefa nas células F5 e G5 são calculadas automaticamente e usadas para criar o Gráfico de Gantt na planilha correspondente. \nOs dados de amostra estão nas células B6 a E21. \nA próxima instrução está na célula A22.","Posição","Data de Início","Data de Término","Marco/Atividade","Iniciar no dia","Duração da tarefa"]
[null,1,{"$f":"TODAY()-10","v":"2022-02-07"},{"$f":"Marcos[[#This Row],[Data de Início]]+10","v":"2022-02-17"},"Início",{"$f":"IFERROR(IF(OR(LEN(Marcos[[#This Row],[Data de Início]])=0,LEN(Marcos[[#This Row],[Data de Término]])=0),\"\",INT(C6)-INT($C$6)),\"\")","v":0},{"$f":"IFERROR(IF(Marcos[[#This Row],[Iniciar no dia]]=0,DATEDIF(Marcos[[#This Row],[Data de Início]],Marcos[[#This Row],[Data de Término]],\"d\")+1,IF(LEN(Marcos[[#This Row],[Iniciar no dia]])=0,\"\",DATEDIF(Marcos[[#This Row],[Data de Início]],Marcos[[#This Row],[Data de Término]],\"d\")+1)),0)","v":11}]
[null,2,{"$f":"TODAY()+5","v":"2022-02-22"},{"$f":"Marcos[[#This Row],[Data de Início]]+15","v":"2022-03-09"},{"$f":"\"Atividade\"&\" \"&ROW($A2)","v":"Atividade 2"},{"$f":"IFERROR(IF(OR(LEN(Marcos[[#This Row],[Data de Início]])=0,LEN(Marcos[[#This Row],[Data de Término]])=0),\"\",INT(C7)-INT($C$6)),\"\")","v":15},{"$f":"IFERROR(IF(Marcos[[#This Row],[Iniciar no dia]]=0,DATEDIF(Marcos[[#This Row],[Data de Início]],Marcos[[#This Row],[Data de Término]],\"d\")+1,IF(LEN(Marcos[[#This Row],[Iniciar no dia]])=0,\"\",DATEDIF(Marcos[[#This Row],[Data de Início]],Marcos[[#This Row],[Data de Término]],\"d\")+1)),0)","v":16}]
[null,3,{"$f":"TODAY()-30","v":"2022-01-18"},{"$f":"Marcos[[#This Row],[Data de Início]]+152","v":"2022-06-19"},{"$f":"\"Atividade\"&\" \"&ROW($A3)","v":"Atividade 3"},{"$f":"IFERROR(IF(OR(LEN(Marcos[[#This Row],[Data de Início]])=0,LEN(Marcos[[#This Row],[Data de Término]])=0),\"\",INT(C8)-INT($C$6)),\"\")","v":{"v":-20,"d":"-20 "}},{"$f":"IFERROR(IF(Marcos[[#This Row],[Iniciar no dia]]=0,DATEDIF(Marcos[[#This Row],[Data de Início]],Marcos[[#This Row],[Data de Término]],\"d\")+1,IF(LEN(Marcos[[#This Row],[Iniciar no dia]])=0,\"\",DATEDIF(Marcos[[#This Row],[Data de Início]],Marcos[[#This Row],[Data de Término]],\"d\")+1)),0)","v":153}]
[null,4,{"$f":"TODAY()+2","v":"2022-02-19"},{"$f":"Marcos[[#This Row],[Data de Início]]+150","v":"2022-07-19"},"Atividade 4",{"$f":"IFERROR(IF(OR(LEN(Marcos[[#This Row],[Data de Início]])=0,LEN(Marcos[[#This Row],[Data de Término]])=0),\"\",INT(C9)-INT($C$6)),\"\")","v":12},{"$f":"IFERROR(IF(Marcos[[#This Row],[Iniciar no dia]]=0,DATEDIF(Marcos[[#This Row],[Data de Início]],Marcos[[#This Row],[Data de Término]],\"d\")+1,IF(LEN(Marcos[[#This Row],[Iniciar no dia]])=0,\"\",DATEDIF(Marcos[[#This Row],[Data de Início]],Marcos[[#This Row],[Data de Término]],\"d\")+1)),0)","v":151}]
[null,5,{"$f":"TODAY()+15","v":"2022-03-04"},{"$f":"Marcos[[#This Row],[Data de Início]]+14","v":"2022-03-18"},"Atividade 5",{"$f":"IFERROR(IF(OR(LEN(Marcos[[#This Row],[Data de Início]])=0,LEN(Marcos[[#This Row],[Data de Término]])=0),\"\",INT(C10)-INT($C$6)),\"\")","v":25},{"$f":"IFERROR(IF(Marcos[[#This Row],[Iniciar no dia]]=0,DATEDIF(Marcos[[#This Row],[Data de Início]],Marcos[[#This Row],[Data de Término]],\"d\")+1,IF(LEN(Marcos[[#This Row],[Iniciar no dia]])=0,\"\",DATEDIF(Marcos[[#This Row],[Data de Início]],Marcos[[#This Row],[Data de Término]],\"d\")+1)),0)","v":15}]
[null,6,{"$f":"TODAY()+30","v":"2022-03-19"},{"$f":"Marcos[[#This Row],[Data de Início]]+45","v":"2022-05-03"},"Atividade 6",{"$f":"IFERROR(IF(OR(LEN(Marcos[[#This Row],[Data de Início]])=0,LEN(Marcos[[#This Row],[Data de Término]])=0),\"\",INT(C11)-INT($C$6)),\"\")","v":40},{"$f":"IFERROR(IF(Marcos[[#This Row],[Iniciar no dia]]=0,DATEDIF(Marcos[[#This Row],[Data de Início]],Marcos[[#This Row],[Data de Término]],\"d\")+1,IF(LEN(Marcos[[#This Row],[Iniciar no dia]])=0,\"\",DATEDIF(Marcos[[#This Row],[Data de Início]],Marcos[[#This Row],[Data de Término]],\"d\")+1)),0)","v":46}]
[null,7,{"$f":"TODAY()+45","v":"2022-04-03"},{"$f":"Marcos[[#This Row],[Data de Início]]+56","v":"2022-05-29"},{"$f":"\"Atividade\"&\" \"&ROW($A7)","v":"Atividade 7"},{"$f":"IFERROR(IF(OR(LEN(Marcos[[#This Row],[Data de Início]])=0,LEN(Marcos[[#This Row],[Data de Término]])=0),\"\",INT(C12)-INT($C$6)),\"\")","v":55},{"$f":"IFERROR(IF(Marcos[[#This Row],[Iniciar no dia]]=0,DATEDIF(Marcos[[#This Row],[Data de Início]],Marcos[[#This Row],[Data de Término]],\"d\")+1,IF(LEN(Marcos[[#This Row],[Iniciar no dia]])=0,\"\",DATEDIF(Marcos[[#This Row],[Data de Início]],Marcos[[#This Row],[Data de Término]],\"d\")+1)),0)","v":57}]
[null,8,{"$f":"TODAY()+60","v":"2022-04-18"},{"$f":"Marcos[[#This Row],[Data de Início]]+30","v":"2022-05-18"},"Atividade 8",{"$f":"IFERROR(IF(OR(LEN(Marcos[[#This Row],[Data de Início]])=0,LEN(Marcos[[#This Row],[Data de Término]])=0),\"\",INT(C13)-INT($C$6)),\"\")","v":70},{"$f":"IFERROR(IF(Marcos[[#This Row],[Iniciar no dia]]=0,DATEDIF(Marcos[[#This Row],[Data de Início]],Marcos[[#This Row],[Data de Término]],\"d\")+1,IF(LEN(Marcos[[#This Row],[Iniciar no dia]])=0,\"\",DATEDIF(Marcos[[#This Row],[Data de Início]],Marcos[[#This Row],[Data de Término]],\"d\")+1)),0)","v":31}]
[null,9,{"$f":"TODAY()+37","v":"2022-03-26"},{"$f":"Marcos[[#This Row],[Data de Início]]+22","v":"2022-04-17"},"Atividade 9",{"$f":"IFERROR(IF(OR(LEN(Marcos[[#This Row],[Data de Início]])=0,LEN(Marcos[[#This Row],[Data de Término]])=0),\"\",INT(C14)-INT($C$6)),\"\")","v":47},{"$f":"IFERROR(IF(Marcos[[#This Row],[Iniciar no dia]]=0,DATEDIF(Marcos[[#This Row],[Data de Início]],Marcos[[#This Row],[Data de Término]],\"d\")+1,IF(LEN(Marcos[[#This Row],[Iniciar no dia]])=0,\"\",DATEDIF(Marcos[[#This Row],[Data de Início]],Marcos[[#This Row],[Data de Término]],\"d\")+1)),0)","v":23}]
[null,10,{"$f":"TODAY()-20","v":"2022-01-28"},{"$f":"Marcos[[#This Row],[Data de Início]]+160","v":"2022-07-07"},"Atividade 10",{"$f":"IFERROR(IF(OR(LEN(Marcos[[#This Row],[Data de Início]])=0,LEN(Marcos[[#This Row],[Data de Término]])=0),\"\",INT(C15)-INT($C$6)),\"\")","v":{"v":-10,"d":"-10 "}},{"$f":"IFERROR(IF(Marcos[[#This Row],[Iniciar no dia]]=0,DATEDIF(Marcos[[#This Row],[Data de Início]],Marcos[[#This Row],[Data de Término]],\"d\")+1,IF(LEN(Marcos[[#This Row],[Iniciar no dia]])=0,\"\",DATEDIF(Marcos[[#This Row],[Data de Início]],Marcos[[#This Row],[Data de Término]],\"d\")+1)),0)","v":161}]
[null,11,{"$f":"TODAY()+20","v":"2022-03-09"},{"$f":"Marcos[[#This Row],[Data de Início]]+65","v":"2022-05-13"},"Atividade 11",{"$f":"IFERROR(IF(OR(LEN(Marcos[[#This Row],[Data de Início]])=0,LEN(Marcos[[#This Row],[Data de Término]])=0),\"\",INT(C16)-INT($C$6)),\"\")","v":30},{"$f":"IFERROR(IF(Marcos[[#This Row],[Iniciar no dia]]=0,DATEDIF(Marcos[[#This Row],[Data de Início]],Marcos[[#This Row],[Data de Término]],\"d\")+1,IF(LEN(Marcos[[#This Row],[Iniciar no dia]])=0,\"\",DATEDIF(Marcos[[#This Row],[Data de Início]],Marcos[[#This Row],[Data de Término]],\"d\")+1)),0)","v":66}]
[null,12,{"$f":"TODAY()+70","v":"2022-04-28"},{"$f":"Marcos[[#This Row],[Data de Início]]+67","v":"2022-07-04"},"Atividade 12",{"$f":"IFERROR(IF(OR(LEN(Marcos[[#This Row],[Data de Início]])=0,LEN(Marcos[[#This Row],[Data de Término]])=0),\"\",INT(C17)-INT($C$6)),\"\")","v":80},{"$f":"IFERROR(IF(Marcos[[#This Row],[Iniciar no dia]]=0,DATEDIF(Marcos[[#This Row],[Data de Início]],Marcos[[#This Row],[Data de Término]],\"d\")+1,IF(LEN(Marcos[[#This Row],[Iniciar no dia]])=0,\"\",DATEDIF(Marcos[[#This Row],[Data de Início]],Marcos[[#This Row],[Data de Término]],\"d\")+1)),0)","v":68}]
[null,13,{"$f":"TODAY()+90","v":"2022-05-18"},{"$f":"Marcos[[#This Row],[Data de Início]]+14","v":"2022-06-01"},"Atividade 13",{"$f":"IFERROR(IF(OR(LEN(Marcos[[#This Row],[Data de Início]])=0,LEN(Marcos[[#This Row],[Data de Término]])=0),\"\",INT(C18)-INT($C$6)),\"\")","v":100},{"$f":"IFERROR(IF(Marcos[[#This Row],[Iniciar no dia]]=0,DATEDIF(Marcos[[#This Row],[Data de Início]],Marcos[[#This Row],[Data de Término]],\"d\")+1,IF(LEN(Marcos[[#This Row],[Iniciar no dia]])=0,\"\",DATEDIF(Marcos[[#This Row],[Data de Início]],Marcos[[#This Row],[Data de Término]],\"d\")+1)),0)","v":15}]
[null,14,{"$f":"TODAY()+100","v":"2022-05-28"},{"$f":"Marcos[[#This Row],[Data de Início]]+3","v":"2022-05-31"},"Atividade 14",{"$f":"IFERROR(IF(OR(LEN(Marcos[[#This Row],[Data de Início]])=0,LEN(Marcos[[#This Row],[Data de Término]])=0),\"\",INT(C19)-INT($C$6)),\"\")","v":110},{"$f":"IFERROR(IF(Marcos[[#This Row],[Iniciar no dia]]=0,DATEDIF(Marcos[[#This Row],[Data de Início]],Marcos[[#This Row],[Data de Término]],\"d\")+1,IF(LEN(Marcos[[#This Row],[Iniciar no dia]])=0,\"\",DATEDIF(Marcos[[#This Row],[Data de Início]],Marcos[[#This Row],[Data de Término]],\"d\")+1)),0)","v":4}]
[null,15,{"$f":"TODAY()+50","v":"2022-04-08"},{"$f":"Marcos[[#This Row],[Data de Início]]+130","v":"2022-08-16"},"Atividade 15",{"$f":"IFERROR(IF(OR(LEN(Marcos[[#This Row],[Data de Início]])=0,LEN(Marcos[[#This Row],[Data de Término]])=0),\"\",INT(C20)-INT($C$6)),\"\")","v":60},{"$f":"IFERROR(IF(Marcos[[#This Row],[Iniciar no dia]]=0,DATEDIF(Marcos[[#This Row],[Data de Início]],Marcos[[#This Row],[Data de Término]],\"d\")+1,IF(LEN(Marcos[[#This Row],[Iniciar no dia]])=0,\"\",DATEDIF(Marcos[[#This Row],[Data de Início]],Marcos[[#This Row],[Data de Término]],\"d\")+1)),0)","v":131}]
[{"$nulls":5},{"$f":"IFERROR(IF(OR(LEN(Marcos[[#This Row],[Data de Início]])=0,LEN(Marcos[[#This Row],[Data de Término]])=0),\"\",INT(C21)-INT($C$6)),\"\")","v":""},{"$f":"IFERROR(IF(Marcos[[#This Row],[Iniciar no dia]]=0,DATEDIF(Marcos[[#This Row],[Data de Início]],Marcos[[#This Row],[Data de Término]],\"d\")+1,IF(LEN(Marcos[[#This Row],[Iniciar no dia]])=0,\"\",DATEDIF(Marcos[[#This Row],[Data de Início]],Marcos[[#This Row],[Data de Término]],\"d\")+1)),0)","v":""}]
["Para adicionar mais marcos/atividades, insira novas linhas acima desta linha.\nEsta é a última instrução nesta planilha.","Para adicionar mais Marcos/Atividades, insira novas linhas acima desta linha"]

{"sheet":"Gráfico do projeto","index":1,"n_rows":1,"n_cols":1,"rows_kept":1}
["Há um gráfico de Gantt com uma barra de rolagem nesta planilha. \nA barra de rolagem começa na célula B29.\nEsta é a última instrução nesta planilha."]

{"sheet":"Sobre","index":2,"n_rows":6,"n_cols":1,"rows_kept":6}
["Sobre esta pasta de trabalho"]
["\nInsira os dados na planilha Controlador de projetos e role pela representação visual da linha do tempo na planilha Gráfico do projeto. \n"]
["A coluna de posição na planilha Controlador de projetos permite que você crie o gráfico de marcos e atividades em linhas separadas. Você pode, por exemplo, ter dois marcos/atividades que começam no mesmo dia e são executados em paralelo. Eles se sobrepõem no gráfico, se tiverem os mesmos valores de posição. Forneça dois valores exclusivos para criar o gráfico em linhas separadas. Experimente!\n\nConforme o gráfico é concluído, você notará marcadores sem texto e sem duração definidos em um período específico. Conforme o último marco sai do gráfico, esses marcadores indicam o final dos marcos no gráfico do Controlador de projetos. Simplesmente role para retornar ou volte ao início para ver os marcos que podem estar no gráfico.\n"]
["Guia para leitores de tela"]
["Há quatro planilhas nesta pasta de trabalho. \n\nControlador de projetos\nGráfico do projeto\nSobre\nDados do gráf. dinâmico (oculta)\n\nAs instruções para cada planilha estão na coluna A, começando na célula A1 de cada planilha. Elas foram escritas com texto oculto. Cada etapa orienta você pelas informações nessa linha. Cada etapa subsequente continua na célula A2, A3 e assim por diante, caso isso não seja orientado explicitamente. Por exemplo, o texto da instrução pode mostrar \"continua na célula A6\" para a próxima etapa. \n\nO texto oculto não será impresso.\n\nPara remover essas instruções de uma planilha, basta excluir a coluna A.\n"]
["Esta é a última instrução nesta planilha."]

{"sheet":"Dados do gráf. dinâmico oculta","index":3,"n_rows":10,"n_cols":6,"rows_kept":10,"hidden":true}
["O título desta planilha está na célula B1.","Dados do gráf. dinâmico"]
["O cabeçalho de incremento de rolagem horizontal está na célula B2.\nPara incrementar manualmente os dados, insira um novo valor na célula B3.\nA página de rolagem atualiza automaticamente quando a barra de rolagem avança ou retorna na planilha Gráfico de Gantt.","incremento de rolagem horizontal"]
["O valor de rolagem do Gráfico de Gantt é atualizado automaticamente na célula B3.",0]
["O título da tabela está na célula B4.","Tabela de dados dinâmicos"]
["Os cabeçalhos da tabela estão nas células B5 a E5. \nHá uma anotação na célula F5.\nEsta tabela cria gráficos com até cinco marcos por vez. \nNão altere ou exclua essa planilha ou seu conteúdo.","marco","data","Iniciar no dia","duração","<--criar gráfico com até cinco marcos por vez"]
[null,{"$f":"IFERROR(IF(LEN(OFFSET('Controlador de projetos'!$E6,$B$3,0,1,1))=0,\"\",INDEX(Marcos[],'Controlador de projetos'!$B6+$B$3,4)),\"\")","v":"Início"},{"$f":"IFERROR(IF(LEN(OFFSET('Controlador de projetos'!$C6,$B$3,0,1,1))=0,Data_de_Término,INDEX(Marcos[],'Controlador de projetos'!$B6+$B$3,2)),\"\")","v":"2022-02-07"},{"$f":"IFERROR(IF(LEN(OFFSET('Controlador de projetos'!$F6,$B$3,0,1,1))=0,\"\",INDEX(Marcos[],'Controlador de projetos'!$B6+$B$3,5)),\"\")","v":0},{"$f":"IFERROR(IF(LEN(OFFSET('Controlador de projetos'!$G6,$B$3,0,1,1))=0,\"\",INDEX(Marcos[],'Controlador de projetos'!$B6+$B$3,6)),\"\")","v":11}]
[null,{"$f":"IFERROR(IF(LEN(OFFSET('Controlador de projetos'!$E7,$B$3,0,1,1))=0,\"\",INDEX(Marcos[],'Controlador de projetos'!$B7+$B$3,4)),\"\")","v":"Atividade 2"},{"$f":"IFERROR(IF(LEN(OFFSET('Controlador de projetos'!$C7,$B$3,0,1,1))=0,Data_de_Término,INDEX(Marcos[],'Controlador de projetos'!$B7+$B$3,2)),\"\")","v":"2022-02-22"},{"$f":"IFERROR(IF(LEN(OFFSET('Controlador de projetos'!$F7,$B$3,0,1,1))=0,\"\",INDEX(Marcos[],'Controlador de projetos'!$B7+$B$3,5)),\"\")","v":15},{"$f":"IFERROR(IF(LEN(OFFSET('Controlador de projetos'!$G7,$B$3,0,1,1))=0,\"\",INDEX(Marcos[],'Controlador de projetos'!$B7+$B$3,6)),\"\")","v":16}]
[null,{"$f":"IFERROR(IF(LEN(OFFSET('Controlador de projetos'!$E8,$B$3,0,1,1))=0,\"\",INDEX(Marcos[],'Controlador de projetos'!$B8+$B$3,4)),\"\")","v":"Atividade 3"},{"$f":"IFERROR(IF(LEN(OFFSET('Controlador de projetos'!$C8,$B$3,0,1,1))=0,Data_de_Término,INDEX(Marcos[],'Controlador de projetos'!$B8+$B$3,2)),\"\")","v":"2022-01-18"},{"$f":"IFERROR(IF(LEN(OFFSET('Controlador de projetos'!$F8,$B$3,0,1,1))=0,\"\",INDEX(Marcos[],'Controlador de projetos'!$B8+$B$3,5)),\"\")","v":-20},{"$f":"IFERROR(IF(LEN(OFFSET('Controlador de projetos'!$G8,$B$3,0,1,1))=0,\"\",INDEX(Marcos[],'Controlador de projetos'!$B8+$B$3,6)),\"\")","v":153}]
[null,{"$f":"IFERROR(IF(LEN(OFFSET('Controlador de projetos'!$E9,$B$3,0,1,1))=0,\"\",INDEX(Marcos[],'Controlador de projetos'!$B9+$B$3,4)),\"\")","v":"Atividade 4"},{"$f":"IFERROR(IF(LEN(OFFSET('Controlador de projetos'!$C9,$B$3,0,1,1))=0,Data_de_Término,INDEX(Marcos[],'Controlador de projetos'!$B9+$B$3,2)),\"\")","v":"2022-02-19"},{"$f":"IFERROR(IF(LEN(OFFSET('Controlador de projetos'!$F9,$B$3,0,1,1))=0,\"\",INDEX(Marcos[],'Controlador de projetos'!$B9+$B$3,5)),\"\")","v":12},{"$f":"IFERROR(IF(LEN(OFFSET('Controlador de projetos'!$G9,$B$3,0,1,1))=0,\"\",INDEX(Marcos[],'Controlador de projetos'!$B9+$B$3,6)),\"\")","v":151}]
[null,{"$f":"IFERROR(IF(LEN(OFFSET('Controlador de projetos'!$E10,$B$3,0,1,1))=0,\"\",INDEX(Marcos[],'Controlador de projetos'!$B10+$B$3,4)),\"\")","v":"Atividade 5"},{"$f":"IFERROR(IF(LEN(OFFSET('Controlador de projetos'!$C10,$B$3,0,1,1))=0,Data_de_Término,INDEX(Marcos[],'Controlador de projetos'!$B10+$B$3,2)),\"\")","v":"2022-03-04"},{"$f":"IFERROR(IF(LEN(OFFSET('Controlador de projetos'!$F10,$B$3,0,1,1))=0,\"\",INDEX(Marcos[],'Controlador de projetos'!$B10+$B$3,5)),\"\")","v":25},{"$f":"IFERROR(IF(LEN(OFFSET('Controlador de projetos'!$G10,$B$3,0,1,1))=0,\"\",INDEX(Marcos[],'Controlador de projetos'!$B10+$B$3,6)),\"\")","v":15}]